fUST/lending_fUST_20250808
["ID","MTS","AMOUNT","RATE_DAILY","PERIOD"]
[377884567,1754597449683,-460.0,0.00021917,2]
[377884568,1754597449694,-460.0,0.00021917,2]
[377884570,1754597449703,-460.0,0.00021917,2]
[377884572,1754597449713,-1890.93,0.00021917,2]
[377884575,1754597449723,-460.0,0.00021917,2]
[377884577,1754597449733,-3937.92,0.00021917,2]
[377884579,1754597449742,-460.0,0.00021917,2]
[377884581,1754597449751,-1733.24,0.00021917,2]
[377884583,1754597449762,-460.0,0.00021917,2]
[377884585,1754597449772,-460.0,0.00021917,2]
[377884586,1754597449782,-460.0,0.00021917,2]
[377884588,1754597449791,-460.0,0.00021917,2]
[377884590,1754597449801,-460.0,0.00021917,2]
[377884592,1754597449811,-377.43574756,0.00021917,2]
[377884594,1754597449820,-460.0,0.00021917,2]
[377884596,1754597449829,-460.0,0.00021917,2]
[377884598,1754597449838,-460.0,0.00021917,2]
[377884600,1754597449847,-460.0,0.00021917,2]
[377884602,1754597449856,-460.0,0.00021917,2]
[377884604,1754597449865,-460.0,0.00021917,2]
[377884606,1754597449872,-460.0,0.00021917,2]
[377884608,1754597449881,-460.0,0.00021917,2]
[377884610,1754597449890,-460.0,0.00021917,2]
[377884612,1754597449898,-460.0,0.00021917,2]
[377884614,1754597449905,-460.0,0.00021917,2]
[377884616,1754597449913,-460.0,0.00021917,2]
[377884618,1754597449921,-460.0,0.00021917,2]
[377884620,1754597449929,-460.0,0.00021917,2]
[377884622,1754597449938,-460.0,0.00021917,2]
[377884624,1754597449946,-1501.76,0.00021917,2]
[377884626,1754597449956,-460.0,0.00021917,2]
[377884628,1754597449965,-460.0,0.00021917,2]
[377884630,1754597449973,-460.0,0.00021917,2]
[377884632,1754597449980,-460.0,0.00021917,2]
[377884634,1754597449989,-588.41,0.00021917,2]
[377884636,1754597449997,-460.0,0.00021917,2]
[377884638,1754597450005,-460.0,0.00021917,2]
[377884640,1754597450014,-460.0,0.00021917,2]
[377884642,1754597450023,-460.0,0.00021917,2]
[377884644,1754597450032,-460.0,0.00021917,2]
[377884646,1754597450041,-214.7140522,0.00021917,2]
[377884648,1754597450051,-557.92,0.00021917,2]
[377884649,1754597450060,-460.0,0.00021917,2]
[377884651,1754597450070,-460.0,0.00021917,2]
[377884653,1754597450079,-460.0,0.00021917,2]
[377884655,1754597450089,-460.0,0.00021917,2]
[377884657,1754597450098,-460.0,0.00021917,2]
[377884660,1754597450108,-460.0,0.00021917,2]
[377884661,1754597450117,-460.0,0.00021917,2]
[377884663,1754597450127,-460.0,0.00021917,2]
[377884665,1754597450138,-460.0,0.00021917,2]
[377884667,1754597450147,-460.0,0.00021917,2]
[377884669,1754597450158,-460.0,0.00021917,2]
[377884671,1754597450168,-460.0,0.00021917,2]
[377884673,1754597450177,-460.0,0.00021917,2]
[377884675,1754597450187,-385.2664618,0.00021917,2]
[377884677,1754597450196,-460.0,0.00021917,2]
[377884679,1754597450206,-460.0,0.00021917,2]
[377884682,1754597450216,-1065.6,0.00021917,2]
[377884683,1754597450226,-460.0,0.00021917,2]
[377884685,1754597450235,-460.0,0.00021917,2]
[377884687,1754597450244,-500.0,0.00021917,2]
[377884689,1754597450254,-537.91,0.00021917,2]
[377884691,1754597450263,-460.0,0.00021917,2]
[377884693,1754597450273,-151.0,0.00021917,2]
[377884695,1754597450283,-468.11104998,0.00021917,2]
[377884697,1754597450292,-151.0,0.00021917,2]
[377884699,1754597450302,-151.0,0.00021917,2]
[377884701,1754597450311,-201.22167384,0.00021917,2]
[377884703,1754597450321,-500.0,0.00021917,2]
[377884706,1754597450331,-460.0,0.00021917,2]
[377884708,1754597450340,-467.37,0.00021917,2]
[377884709,1754597450350,-151.73266261,0.00021917,2]
[377884711,1754597450359,-151.24638763,0.00021917,2]
[377884714,1754597450369,-502.54,0.00021917,2]
[377884715,1754597450378,-460.0,0.00021917,2]
[377884717,1754597450387,-152.11740545,0.00021917,2]
[377884720,1754597450398,-1117.79,0.00021917,2]
[377884722,1754597450407,-460.0,0.00021917,2]
[377884724,1754597450416,-156.77208899,0.00021917,2]
[377884726,1754597450425,-460.0,0.00021917,2]
[377884728,1754597450434,-460.0,0.00021917,2]
[377884730,1754597450444,-460.0,0.00021917,2]
[377884732,1754597450453,-460.0,0.00021917,2]
[377884733,1754597450463,-460.0,0.00021917,2]
[377884735,1754597450472,-711.83,0.00021917,2]
[377884737,1754597450482,-471.94851521,0.00021917,2]
[377884739,1754597450492,-460.0,0.00021917,2]
[377884741,1754597450502,-460.0,0.00021917,2]
[377884744,1754597450511,-460.0,0.00021917,2]
[377884745,1754597450521,-460.0,0.00021917,2]
[377884747,1754597450530,-500.0,0.00021917,2]
[377884750,1754597450540,-500.0,0.00021917,2]
[377884752,1754597450550,-500.0,0.00021917,2]
[377884754,1754597450559,-460.0,0.00021917,2]
[377884756,1754597450569,-460.0,0.00021917,2]
[377884758,1754597450578,-460.0,0.00021917,2]
[377884759,1754597450587,-460.0,0.00021917,2]
[377884761,1754597450597,-460.0,0.00021917,2]
[377884763,1754597450606,-460.0,0.00021917,2]
[377884765,1754597450619,-1148.62,0.00021917,2]
[377884768,1754597450629,-460.0,0.00021917,2]
[377884770,1754597450638,-460.0,0.00021917,2]
[377884771,1754597450649,-460.0,0.00021917,2]
[377884773,1754597450659,-460.0,0.00021917,2]
[377884775,1754597450668,-654.84,0.00021917,2]
[377884778,1754597450678,-508.86245328,0.00021917,2]
[377884779,1754597450687,-460.0,0.00021917,2]
[377884782,1754597450697,-460.0,0.00021917,2]
[377884784,1754597450708,-1374.09,0.00021917,2]
[377884785,1754597450718,-460.0,0.00021917,2]
[377884787,1754597450727,-490.85,0.00021917,2]
[377884789,1754597450737,-460.0,0.00021917,2]
[377884791,1754597450746,-460.0,0.00021917,2]
[377884794,1754597450755,-460.0,0.00021917,2]
[377884796,1754597450765,-460.0,0.00021917,2]
[377884797,1754597450774,-460.0,0.00021917,2]
[377884800,1754597450784,-460.0,0.00021917,2]
[377884802,1754597450794,-460.0,0.00021917,2]
[377884803,1754597450803,-528.65,0.00021917,2]
[377884806,1754597450813,-460.0,0.00021917,2]
[377884807,1754597450822,-476.51,0.00021917,2]
[377884809,1754597450832,-460.0,0.00021917,2]
[377884812,1754597450842,-460.0,0.00021917,2]
[377884813,1754597450852,-460.0,0.00021917,2]
[377884815,1754597450861,-460.0,0.00021917,2]
[377884817,1754597450871,-460.0,0.00021917,2]
[377884819,1754597450880,-460.0,0.00021917,2]
[377884821,1754597450889,-460.85875591,0.00021917,2]
[377884823,1754597450899,-460.0,0.00021917,2]
[377884825,1754597450908,-460.0,0.00021917,2]
[377884827,1754597450917,-460.0,0.00021917,2]
[377884829,1754597450927,-460.0,0.00021917,2]
[377884831,1754597450937,-706.78,0.00021917,2]
[377884833,1754597450947,-391.83370123,0.00021917,2]
[377884835,1754597450959,-500.0,0.00021973,2]
[377884837,1754597450968,-500.0,0.00021973,2]
[377884839,1754597450977,-500.0,0.00021973,2]
[377884841,1754597450987,-439.80513683,0.00022091,2]
[377884844,1754597450996,-206.4333313,0.00022123,2]
[377884845,1754597451005,-300.0,0.00022145,2]
[377884847,1754597451015,-500.0,0.00022173,2]
[377884849,1754597451024,-198.0,0.00022191,2]
[377884851,1754597451033,-151.0,0.00022191,2]
[377884854,1754597451043,-151.0,0.00022191,2]
[377884855,1754597451052,-500.0,0.00022191,2]
[377884857,1754597451061,-151.0,0.00022191,2]
[377884859,1754597451070,-151.0,0.00022191,2]
[377884861,1754597451080,-500.0,0.00022191,2]
[377884863,1754597451090,-500.0,0.00022191,2]
[377884865,1754597451099,-503.67033523,0.00022191,2]
[377884867,1754597451109,-151.0,0.00022191,2]
[377884883,1754597451245,-500.0,0.00022191,2]
[377884886,1754597451262,-151.0,0.00022191,2]
[377884888,1754597451272,-151.0,0.00022191,2]
[377884890,1754597451281,-151.0,0.00022191,2]
[377884892,1754597451291,-198.44795225,0.00022191,2]
[377884894,1754597451300,-500.0,0.00022191,2]
[377884896,1754597451309,-500.0,0.00022191,2]
[377884898,1754597451319,-500.0,0.00022191,2]
[377884900,1754597451329,-152.69560173,0.00022191,2]
[377884902,1754597451338,-151.0,0.00022191,2]
[377884904,1754597451347,-151.0,0.00022191,2]
[377884906,1754597451357,-500.0,0.00022191,2]
[377884908,1754597451366,-466.35559747,0.00022191,2]
[377884910,1754597451376,-460.0,0.00022191,2]
[377884912,1754597451385,-460.0,0.00022191,2]
[377884914,1754597451394,-460.0,0.00022191,2]
[377884916,1754597451404,-268.16,0.00022191,2]
[377884918,1754597451413,-460.0,0.00022191,2]
[377884920,1754597451422,-460.0,0.00022191,2]
[377884922,1754597451431,-157.5,0.00022191,2]
[377884924,1754597451440,-460.0,0.00022191,2]
[377884926,1754597451449,-461.67604199,0.00022191,2]
[377884928,1754597451459,-460.0,0.00022191,2]
[377884930,1754597451468,-596.42,0.00022191,2]
[377884932,1754597451477,-460.0,0.00022191,2]
[377884934,1754597451486,-460.0,0.00022191,2]
[377884936,1754597451495,-460.0,0.00022191,2]
[377884938,1754597451505,-460.0,0.00022191,2]
[377884940,1754597451514,-469.74,0.00022191,2]
[377884942,1754597451524,-460.0,0.00022191,2]
[377884944,1754597451533,-464.59360669,0.00022191,2]
[377884946,1754597451542,-587.07,0.00022191,2]
[377884948,1754597451551,-460.0,0.00022191,2]
[377884950,1754597451560,-460.0,0.00022191,2]
[377884952,1754597451570,-460.0,0.00022191,2]
[377884953,1754597451579,-460.0,0.00022191,2]
[377884954,1754597451588,-460.0,0.00022191,2]
[377884955,1754597451598,-460.0,0.00022191,2]
[377884956,1754597451609,-460.0,0.00022191,2]
[377884957,1754597451620,-460.0,0.00022191,2]
[377884958,1754597451630,-460.0,0.00022191,2]
[377884959,1754597451639,-460.0,0.00022191,2]
[377884960,1754597451648,-379.40167366,0.00022191,2]
[377884961,1754597451658,-360.51839055,0.00022191,2]
[377884963,1754597451667,-460.0,0.00022191,2]
[377884965,1754597451676,-460.0,0.00022191,2]
[377884967,1754597451686,-151.0,0.00022191,7]
[377884969,1754597451696,-460.0,0.00022191,2]
[377884971,1754597451706,-259.996808,0.00022191,7]
[377884973,1754597451715,-460.0,0.00022191,2]
[377884975,1754597451724,-151.0,0.00022191,7]
[377884977,1754597451733,-151.0,0.00022191,7]
[377884979,1754597451743,-475.49987149,0.00022191,2]
[377884981,1754597451752,-460.0,0.00022191,2]
[377884983,1754597451762,-460.0,0.00022191,2]
[377884985,1754597451771,-460.0,0.00022191,2]
[377884987,1754597451780,-460.0,0.00022191,2]
[377884989,1754597451789,-460.0,0.00022191,2]
[377884991,1754597451798,-460.0,0.00022191,2]
[377884993,1754597451807,-460.0,0.00022191,2]
[377884995,1754597451817,-460.0,0.00022191,2]
[377884997,1754597451827,-460.0,0.00022191,2]
[377884999,1754597451836,-460.0,0.00022191,2]
[377885001,1754597451846,-827.71,0.00022191,2]
[377885003,1754597451855,-151.0,0.00022191,7]
[377885005,1754597451864,-460.0,0.00022191,2]
[377885007,1754597451874,-460.0,0.00022191,2]
[377885009,1754597451883,-461.85,0.00022191,2]
[377885011,1754597451893,-745.55,0.00022191,2]
[377885013,1754597451903,-460.0,0.00022191,2]
[377885015,1754597451912,-200.79343,0.00022191,7]
[377885017,1754597451921,-460.0,0.00022191,2]
[377885019,1754597451930,-460.0,0.00022191,2]
[377885021,1754597451940,-200.79343,0.00022191,7]
[377885023,1754597451949,-460.0,0.00022191,2]
[377885026,1754597451959,-460.0,0.00022191,2]
[377885028,1754597451969,-460.0,0.00022191,2]
[377885029,1754597451977,-460.0,0.00022191,2]
[377885032,1754597451987,-460.0,0.00022191,2]
[377885033,1754597451996,-460.0,0.00022191,2]
[377885036,1754597452005,-886.72,0.00022191,2]
[377885038,1754597452015,-460.0,0.00022191,2]
[377885039,1754597452024,-460.0,0.00022191,2]
[377885041,1754597452033,-2930.21,0.00022191,2]
[377885044,1754597452043,-151.0,0.00022191,7]
[377885046,1754597452052,-460.0,0.00022191,2]
[377885048,1754597452062,-460.0,0.00022191,2]
[377885050,1754597452073,-460.0,0.00022191,2]
[377885051,1754597452082,-460.0,0.00022191,2]
[377885053,1754597452091,-460.0,0.00022191,2]
[377885056,1754597452101,-460.0,0.00022191,2]
[377885057,1754597452110,-460.0,0.00022191,2]
[377885060,1754597452120,-460.0,0.00022191,2]
[377885062,1754597452129,-468.32115005,0.00022191,2]
[377885063,1754597452138,-612.41,0.00022191,2]
[377885065,1754597452148,-151.0,0.00022191,7]
[377885068,1754597452158,-460.0,0.00022191,2]
[377885069,1754597452167,-460.0,0.00022191,2]
[377885071,1754597452178,-460.0,0.00022191,2]
[377885073,1754597452188,-788.22,0.00022191,2]
[377885075,1754597452197,-460.0,0.00022191,2]
[377885078,1754597452208,-460.0,0.00022191,2]
[377885080,1754597452218,-460.0,0.00022191,2]
[377885082,1754597452227,-460.0,0.00022191,2]
[377885083,1754597452236,-460.0,0.00022191,2]
[377885086,1754597452246,-460.0,0.00022191,2]
[377885088,1754597452255,-460.0,0.00022191,2]
[377885090,1754597452264,-311.98,0.00022191,2]
[377885092,1754597452273,-194.72,0.00022191,2]
[377885094,1754597452283,-561.06,0.00022191,2]
[377885096,1754597452292,-533.46,0.00022191,2]
[377885098,1754597452301,-1442.32,0.00022191,2]
[377885100,1754597452311,-460.0,0.00022191,2]
[377885102,1754597452320,-460.0,0.00022191,2]
[377885104,1754597452329,-460.0,0.00022191,2]
[377885106,1754597452338,-460.0,0.00022191,2]
[377885108,1754597452348,-151.0,0.00022191,7]
[377885109,1754597452357,-460.0,0.00022191,2]
[377885112,1754597452366,-460.0,0.00022191,2]
[377885114,1754597452375,-460.0,0.00022191,2]
[377885115,1754597452384,-460.0,0.00022191,2]
[377885117,1754597452393,-151.0,0.00022191,7]
[377885119,1754597452403,-460.0,0.00022191,2]
[377885122,1754597452412,-460.0,0.00022191,2]
[377885124,1754597452421,-460.0,0.00022191,2]
[377885126,1754597452430,-625.88,0.00022191,2]
[377885128,1754597452439,-460.0,0.00022191,2]
[377885129,1754597452448,-460.0,0.00022191,2]
[377885132,1754597452461,-151.0,0.00022191,7]
[377885134,1754597452470,-243.579711,0.00022191,7]
[377885135,1754597452479,-551.2,0.00022191,2]
[377885138,1754597452488,-462.66640015,0.00022191,2]
[377885140,1754597452497,-646.08,0.00022191,2]
[377885142,1754597452507,-983.85,0.00022191,2]
[377885144,1754597452516,-234.20491421,0.00022191,2]
[377885146,1754597452525,-460.0,0.00022191,2]
[377885148,1754597452535,-460.0,0.00022191,2]
[377885150,1754597452544,-460.0,0.00022191,2]
[377885152,1754597452554,-151.0,0.00022191,7]
[377885154,1754597452563,-503.73,0.00022191,2]
[377885156,1754597452574,-153.83342,0.00022191,7]
[377885157,1754597452584,-151.0,0.00022191,7]
[377885160,1754597452603,-153.83342,0.00022191,7]
[377885161,1754597452616,-460.0,0.00022191,2]
[377885164,1754597452626,-1330.75,0.00022191,2]
[377885165,1754597452635,-460.0,0.00022191,2]
[377885167,1754597452645,-2196.25,0.00022191,2]
[377885170,1754597452655,-2196.25,0.00022191,2]
[377885172,1754597452665,-330.64939674,0.00022191,2]
[377885173,1754597452674,-460.0,0.00022191,2]
[377885175,1754597452683,-460.0,0.00022191,2]
[377885178,1754597452695,-1890.93,0.00022191,2]
[377885180,1754597452707,-3937.92,0.00022191,2]
[377885181,1754597452716,-459.87,0.00022191,2]
[377885184,1754597452726,-1733.24,0.00022191,2]
[377885185,1754597452735,-460.0,0.00022191,2]
[377885188,1754597452744,-460.0,0.00022191,2]
[377885190,1754597452754,-531.2428614,0.00022191,2]
[377885192,1754597452763,-151.0,0.00022191,7]
[377885194,1754597452772,-460.0,0.00022191,2]
[377885196,1754597452782,-460.0,0.00022191,2]
[377885198,1754597452791,-460.0,0.00022191,2]
[377885200,1754597452801,-291.03707288,0.00022191,2]
[377885202,1754597452810,-460.0,0.00022191,2]
[377885204,1754597452819,-460.0,0.00022191,2]
[377885206,1754597452828,-460.0,0.00022191,2]
[377885208,1754597452838,-460.0,0.00022191,2]
[377885210,1754597452847,-1501.76,0.00022191,2]
[377885212,1754597452856,-151.0,0.00022191,7]
[377885214,1754597452866,-460.0,0.00022191,2]
[377885216,1754597452874,-151.0,0.00022191,7]
[377885218,1754597452883,-460.0,0.00022191,2]
[377885220,1754597452893,-460.0,0.00022191,2]
[377885222,1754597452902,-460.0,0.00022191,2]
[377885224,1754597452911,-460.0,0.00022191,2]
[377885226,1754597452920,-460.0,0.00022191,2]
[377885228,1754597452929,-151.0,0.00022191,7]
[377885230,1754597452938,-151.0,0.00022191,7]
[377885232,1754597452947,-340.751364,0.00022191,7]
[377885234,1754597452960,-460.0,0.00022191,2]
[377885236,1754597452969,-460.0,0.00022191,2]
[377885238,1754597452978,-460.0,0.00022191,2]
[377885240,1754597452987,-460.0,0.00022191,2]
[377885242,1754597452996,-340.751364,0.00022191,7]
[377885244,1754597453005,-460.0,0.00022191,2]
[377885246,1754597453014,-460.0,0.00022191,2]
[377885248,1754597453023,-460.0,0.00022191,2]
[377885250,1754597453032,-460.0,0.00022191,2]
[377885252,1754597453042,-1464.765299,0.00022191,7]
[377885254,1754597453051,-460.0,0.00022191,2]
[377885256,1754597453060,-1464.765299,0.00022191,7]
[377885258,1754597453069,-151.0,0.00022191,7]
[377885260,1754597453079,-151.0,0.00022191,7]
[377885262,1754597453088,-151.0,0.00022191,7]
[377885264,1754597453097,-151.0,0.00022191,7]
[377885266,1754597453107,-460.0,0.00022191,2]
[377885268,1754597453116,-151.0,0.00022191,7]
[377885270,1754597453125,-1065.6,0.00022191,2]
[377885271,1754597453134,-151.0,0.00022191,7]
[377885273,1754597453144,-460.0,0.00022191,2]
[377885275,1754597453156,-151.0,0.00022191,7]
[377885278,1754597453165,-151.0,0.00022191,7]
[377885280,1754597453175,-537.91,0.00022191,2]
[377885281,1754597453186,-467.37,0.00022191,2]
[377885284,1754597453195,-502.54,0.00022191,2]
[377885286,1754597453206,-460.0,0.00022191,2]
[377885288,1754597453216,-1117.79,0.00022191,2]
[377885289,1754597453225,-460.0,0.00022191,2]
[377885291,1754597453234,-460.0,0.00022191,2]
[377885293,1754597453244,-711.83,0.00022191,2]
[377885295,1754597453253,-460.0,0.00022191,2]
[377885298,1754597453263,-151.955716,0.00022191,7]
[377885300,1754597453272,-460.0,0.00022191,2]
[377885301,1754597453282,-460.0,0.00022191,2]
[377885304,1754597453291,-460.0,0.00022191,2]
[377885306,1754597453301,-151.0,0.00022191,7]
[377885308,1754597453310,-151.0,0.00022191,7]
[377885309,1754597453319,-460.0,0.00022191,2]
[377885312,1754597453329,-460.0,0.00022191,2]
[377885314,1754597453339,-239.12982,0.00022191,7]
[377885316,1754597453348,-1198.56,0.00022191,2]
[377885318,1754597453357,-1148.62,0.00022191,2]
[377885320,1754597453367,-460.0,0.00022191,2]
[377885322,1754597453376,-460.0,0.00022191,2]
[377885324,1754597453386,-460.0,0.00022191,2]
[377885326,1754597453396,-654.84,0.00022191,2]
[377885328,1754597453405,-460.0,0.00022191,2]
[377885330,1754597453415,-460.0,0.00022191,2]
[377885332,1754597453424,-151.0,0.00022191,7]
[377885334,1754597453434,-151.0,0.00022191,7]
[377885336,1754597453444,-1374.09,0.00022191,2]
[377885338,1754597453454,-460.0,0.00022191,2]
[377885340,1754597453466,-465.24,0.00022191,2]
[377885342,1754597453479,-460.0,0.00022191,2]
[377885344,1754597453493,-460.0,0.00022191,2]
[377885346,1754597453502,-460.0,0.00022191,2]
[377885348,1754597453511,-528.65,0.00022191,2]
[377885350,1754597453521,-460.0,0.00022191,2]
[377885352,1754597453530,-460.0,0.00022191,2]
[377885354,1754597453539,-460.0,0.00022191,2]
[377885356,1754597453549,-460.0,0.00022191,2]
[377885358,1754597453558,-460.0,0.00022191,2]
[377885360,1754597453567,-460.0,0.00022191,2]
[377885362,1754597453577,-460.0,0.00022191,2]
[377885364,1754597453586,-460.0,0.00022191,2]
[377885366,1754597453597,-706.78,0.00022191,2]
[377885368,1754597453607,-300.00064,0.00022365,7]
[377885370,1754597453622,-151.0,0.00022365,7]
[377885376,1754597453666,-151.0,0.00022365,7]
[377885378,1754597453675,-151.0,0.00022365,7]
[377885380,1754597453684,-151.0,0.00022365,7]
[377885382,1754597453694,-151.0,0.00022465,2]
[377885384,1754597453704,-266.63285556,0.00022465,2]
[377885386,1754597453713,-151.0,0.00022465,2]
[377885388,1754597453723,-514.20798353,0.00022465,2]
[377885390,1754597453731,-246.01908643,0.00022465,2]
[377885392,1754597453741,-255.0,0.00022465,2]
[377885394,1754597453750,-151.0,0.00022465,2]
[377885396,1754597453759,-151.0,0.00022465,2]
[377885398,1754597453769,-151.0,0.00022465,2]
[377885400,1754597453779,-302.0,0.00022465,2]
[377885402,1754597453788,-500.0,0.00022465,2]
[377885404,1754597453798,-500.0,0.00022465,2]
[377885406,1754597453807,-151.0,0.00022465,2]
[377885409,1754597453817,-500.0,0.00022465,2]
[377885410,1754597453826,-460.0,0.00022465,2]
[377885412,1754597453835,-151.0,0.00022465,7]
[377885414,1754597453844,-469.74,0.00022465,2]
[377885417,1754597453853,-460.0,0.00022465,2]
[377885419,1754597453862,-187.5204,0.00022465,7]
[377885421,1754597453872,-187.5204,0.00022465,7]
[377885423,1754597453881,-460.0,0.00022465,2]
[377885424,1754597453890,-151.0,0.00022465,7]
[377885427,1754597453900,-259.05,0.00022465,2]
[377885429,1754597453909,-460.0,0.00022465,2]
[377885431,1754597453919,-269.907826,0.00022465,7]
[377885433,1754597453928,-414.87147844,0.00022465,2]
[377885434,1754597453938,-151.0,0.00022465,7]
[377885437,1754597453948,-877.228803,0.00022465,7]
[377885439,1754597453957,-460.0,0.00022465,2]
[377885441,1754597453967,-151.0,0.00022465,7]
[377885443,1754597453976,-494.28868587,0.00022465,2]
[377885444,1754597453985,-151.0,0.00022465,7]
[377885446,1754597453995,-347.23,0.00022465,2]
[377885449,1754597454004,-154.018202,0.00022465,7]
[377885451,1754597454014,-151.0,0.00022465,7]
[377885453,1754597454023,-460.0,0.00022465,2]
[377885455,1754597454032,-460.0,0.00022465,2]
[377885456,1754597454041,-279.16,0.00022465,2]
[377885459,1754597454050,-460.0,0.00022465,2]
[377885460,1754597454060,-460.0,0.00022465,2]
[377885463,1754597454071,-460.0,0.00022465,2]
[377885465,1754597454080,-460.0,0.00022465,2]
[377885467,1754597454090,-460.0,0.00022465,2]
[377885469,1754597454099,-827.71,0.00022465,2]
[377885471,1754597454109,-151.0,0.00022465,7]
[377885473,1754597454119,-460.0,0.00022465,2]
[377885475,1754597454128,-745.55,0.00022465,2]
[377885477,1754597454137,-460.0,0.00022465,2]
[377885479,1754597454147,-200.79343,0.00022465,7]
[377885481,1754597454156,-200.79343,0.00022465,7]
[377885483,1754597454166,-460.0,0.00022465,2]
[377885485,1754597454176,-460.0,0.00022465,2]
[377885487,1754597454185,-452.53758272,0.00022465,2]
[377885489,1754597454195,-460.0,0.00022465,2]
[377885491,1754597454204,-886.72,0.00022465,2]
[377885492,1754597454213,-460.0,0.00022465,2]
[377885495,1754597454224,-2930.21,0.00022465,2]
[377885497,1754597454233,-151.0,0.00022465,7]
[377885499,1754597454243,-284.43,0.00022465,2]
[377885500,1754597454252,-460.0,0.00022465,2]
[377885502,1754597454262,-169.89,0.00022465,2]
[377885504,1754597454272,-460.0,0.00022465,2]
[377885506,1754597454281,-460.0,0.00022465,2]
[377885508,1754597454290,-612.41,0.00022465,2]
[377885510,1754597454300,-151.0,0.00022465,7]
[377885513,1754597454310,-472.34,0.00022465,2]
[377885515,1754597454320,-788.22,0.00022465,2]
[377885516,1754597454328,-460.0,0.00022465,2]
[377885519,1754597454338,-460.0,0.00022465,2]
[377885521,1754597454348,-460.0,0.00022465,2]
[377885522,1754597454358,-561.06,0.00022465,2]
[377885525,1754597454367,-1442.32,0.00022465,2]
[377885526,1754597454377,-460.0,0.00022465,2]
[377885529,1754597454386,-460.0,0.00022465,2]
[377885530,1754597454396,-460.0,0.00022465,2]
[377885532,1754597454405,-460.0,0.00022465,2]
[377885534,1754597454415,-521.0,0.00022465,2]
[377885537,1754597454424,-460.0,0.00022465,2]
[377885539,1754597454433,-625.88,0.00022465,2]
[377885540,1754597454442,-282.26714234,0.00022465,2]
[377885542,1754597454452,-460.0,0.00022465,2]
[377885545,1754597454462,-551.2,0.00022465,2]
[377885547,1754597454471,-646.08,0.00022465,2]
[377885549,1754597454480,-983.85,0.00022465,2]
[377885551,1754597454490,-460.0,0.00022465,2]
[377885552,1754597454499,-460.0,0.00022465,2]
[377885554,1754597454508,-460.0,0.00022465,2]
[377885556,1754597454518,-153.83342,0.00022465,7]
[377885558,1754597454527,-153.83342,0.00022465,7]
[377885560,1754597454537,-1330.75,0.00022465,2]
[377885562,1754597454546,-460.0,0.00022465,2]
[377885564,1754597454555,-2196.25,0.00022465,2]
[377885566,1754597454565,-2196.25,0.00022465,2]
[377885568,1754597454574,-1890.93,0.00022465,2]
[377885571,1754597454584,-3937.92,0.00022465,2]
[377885573,1754597454593,-1733.24,0.00022465,2]
[377885574,1754597454602,-151.0,0.00022465,7]